fUSD/lending_fUSD_20241123
["ID","MTS","AMOUNT","RATE_DAILY","PERIOD"]
[343092510,1732345854230,-533.98,0.00054999,120]
[343092511,1732345854245,-533.98,0.00054999,120]
[343092512,1732345854259,-533.98,0.00054999,120]
[343092513,1732345854273,-533.98,0.00054999,120]
[343092514,1732345854287,-533.98,0.00054999,120]
[343092515,1732345854302,-533.98,0.00054999,120]
[343092516,1732345854317,-533.98,0.00054999,120]
[343092517,1732345854332,-533.98,0.00054999,120]
[343092518,1732345854347,-533.98,0.00054999,120]
[343092519,1732345854360,-500.0,0.00054999,120]
[343092520,1732345854376,-500.0,0.00054999,120]
[343092521,1732345854390,-533.98,0.00054999,120]
[343092522,1732345854405,-533.98,0.00054999,120]
[343092523,1732345854421,-533.98,0.00054999,120]
[343092524,1732345854436,-533.98,0.00054999,120]
[343092525,1732345854450,-534.07400796,0.00054999,120]
[343092526,1732345854464,-500.0,0.00054999,120]
[343092527,1732345854480,-500.0,0.00054999,120]
[343092528,1732345854497,-500.0,0.00054999,120]
[343092529,1732345854513,-500.0,0.00054999,120]
[343092530,1732345854528,-500.0,0.00054999,120]
[343092531,1732345854543,-500.0,0.00054999,120]
[343092532,1732345854558,-500.0,0.00054999,120]
[343092533,1732345854573,-500.0,0.00054999,120]
[343092534,1732345854689,-500.0,0.00054999,120]
[343092535,1732345854704,-500.0,0.00054999,120]
[343092536,1732345854714,-500.0,0.00054999,120]
[343092537,1732345854724,-500.0,0.00054999,120]
[343092538,1732345854733,-500.0,0.00054999,120]
[343092539,1732345854743,-383.54,0.00054999,120]
[343092540,1732345854753,-500.0,0.00054999,120]
[343092541,1732345854762,-500.0,0.00054999,120]
[343092542,1732345854772,-500.0,0.00054999,120]
[343092543,1732345854781,-569.32,0.00054999,120]
[343092544,1732345854791,-928.39,0.00054999,120]
[343092545,1732345854801,-928.39,0.00054999,120]
[343092546,1732345854811,-928.39,0.00054999,120]
[343092547,1732345854820,-928.39,0.00054999,120]
[343092548,1732345854830,-928.39,0.00054999,120]
[343092549,1732345854839,-928.39,0.00054999,120]
[343092550,1732345854849,-928.39,0.00054999,120]
[343092551,1732345854858,-928.39,0.00054999,120]
[343092552,1732345854868,-928.39,0.00054999,120]
[343092553,1732345854877,-928.39,0.00054999,120]
[343092554,1732345854887,-928.39,0.00054999,120]
[343092555,1732345854899,-928.39,0.00054999,120]
[343092556,1732345854908,-928.39,0.00054999,120]
[343092557,1732345854918,-928.39,0.00054999,120]
[343092558,1732345854927,-928.39,0.00054999,120]
[343092559,1732345854937,-928.39,0.00054999,120]
[343092560,1732345854947,-928.39,0.00054999,120]
[343092561,1732345854956,-928.39,0.00054999,120]
[343092562,1732345854965,-928.59,0.00054999,120]
[343092563,1732345854974,-492.26,0.00054999,120]
[343092564,1732345854984,-589237.54280279,0.00055,120]
[343092565,1732345855184,-523.0286153,0.00055,120]
[343092566,1732345855416,-336.05860433,0.00050945,2]
[343092567,1732345855427,-441.65669409,0.00051419,23]
[343092568,1732345855437,-489.75129513,0.00052602,120]
[343092569,1732345855449,-10.24870487,0.00052602,120]
[343092570,1732345855458,-368.31,0.00052602,120]
[343092571,1732345855468,-500.0,0.00052602,120]
[343092572,1732345855479,-450.40825735,0.00052602,120]
[343092573,1732345855493,-191.37174265,0.00052602,120]
[343092574,1732345855502,-305.34,0.00052602,120]
[343092575,1732345855512,-321.67048485,0.00052602,120]
[343092576,1732345855526,-178.32951515,0.00052602,120]
[343092577,1732345855535,-500.0,0.00052602,120]
[343092578,1732345855544,-167.29924109,0.00052602,120]
[343092579,1732345855555,-278.85,0.00052602,120]
[343092580,1732345855566,-343.77208226,0.00052602,120]
[343092581,1732345855579,-156.22791774,0.00052602,120]
[343092582,1732345855588,-500.0,0.00052602,120]
[343092583,1732345855597,-500.0,0.00052602,120]
[343092584,1732345855607,-374.82330226,0.00052602,120]
[343092585,1732345855619,-125.17669774,0.00052602,120]
[343092586,1732345855628,-500.0,0.00052602,120]
[343092587,1732345855638,-481.52282776,0.00052602,120]
[343092588,1732345855650,-575.3,0.00052602,120]
[343092589,1732345855659,-0.9540055,0.00055,120]
[343092590,1732345855670,-1501.050518,0.00055,120]
[343092591,1732345855681,-1611.6897,0.00055,120]
[343092592,1732345855694,-1072.32,0.00055,120]
[343092593,1732345855705,-581.96065733,0.00055,120]
[343092594,1732345855783,-939.6866949,0.00055,120]
[343092595,1732345855795,-3726.2539619,0.00055,120]
[343092596,1732345855898,-8654.94058321,0.00055,120]
[343092597,1732345855933,-500.0,0.00052602,120]
[343092598,1732345855943,-500.0,0.00052602,120]
[343092599,1732345855953,-1037.13784259,0.00055,120]
[343092600,1732345855964,-2153.41028009,0.00055,120]
[343092601,1732345855976,-597.71221284,0.00055,120]
[343092602,1732345855988,-346.59156603,0.00055,120]
[343092603,1732345856003,-500.0,0.00052602,120]
[343092604,1732345856013,-4319.1551894,0.00055,120]
[343092605,1732345856024,-440.97919358,0.00055,120]
[343092606,1732345856251,-188.64370385,0.00052502,120]
[343092607,1732345856261,-500.0,0.00052602,120]
[343092608,1732345856271,-150.0,0.00054728,7]
[343092609,1732345856281,-150.0,0.00054742,7]
[343092610,1732345856290,-150.0,0.00054777,7]
[343092611,1732345856300,-150.0,0.00054784,7]
[343092612,1732345856310,-150.0,0.00054789,7]
[343092613,1732345856319,-150.0,0.00054807,14]
[343092614,1732345856328,-150.0,0.00054816,14]
[343092615,1732345856338,-150.0,0.00054821,14]
[343092616,1732345856347,-150.0,0.00054823,14]
[343092617,1732345856356,-150.0,0.00054827,14]
[343092618,1732345856366,-150.0,0.00054846,14]
[343092619,1732345856375,-150.0,0.00054861,14]
[343092620,1732345856384,-150.0,0.00054887,14]
[343092621,1732345856395,-150.0,0.0005489,14]
[343092622,1732345856405,-150.0,0.00054897,14]
[343092623,1732345856415,-150.0,0.00054902,14]
[343092624,1732345856424,-150.0,0.00054909,14]
[343092625,1732345856433,-150.0,0.0005498,14]
[343092626,1732345856443,-150.0,0.00054991,14]
[343092627,1732345856453,-150.0,0.00054991,14]
[343092628,1732345856464,-150.0,0.00054992,14]
[343092629,1732345856473,-150.0,0.00054997,14]
[343092630,1732345856485,-3042.81616461,0.00055,120]
[343092631,1732345856497,-438.02540688,0.00055,120]
[343092632,1732345856531,-150.0,0.0005481,14]
[343092633,1732345856540,-150.0,0.0005481,14]
[343092634,1732345856550,-150.0,0.00054843,14]
[343092635,1732345856562,-150.0,0.00054899,14]
[343092636,1732345856572,-150.0,0.00054982,14]
[343092637,1732345856583,-7357.27999999,0.00055,120]
[343092638,1732345856596,-7914.36033664,0.00055,120]
[343092639,1732345856746,-500.0,0.00052602,120]
[343092640,1732345856756,-500.0,0.00052602,120]
[343092641,1732345856765,-500.0,0.00052602,120]
[343092642,1732345856774,-500.0,0.00052602,120]
[343092643,1732345856783,-188.64370384,0.00053701,120]
[343092644,1732345856793,-150.0,0.00054752,7]
[343092645,1732345856802,-150.0,0.00054753,7]
[343092646,1732345856812,-150.0,0.00054774,7]
[343092647,1732345856821,-150.0,0.00054798,14]
[343092648,1732345856831,-150.0,0.00054851,14]
[343092649,1732345856840,-150.0,0.00054853,14]
[343092650,1732345856849,-150.0,0.00054884,14]
[343092651,1732345856858,-1129.91242332,0.000549,2]
[343092652,1732345856868,-150.0,0.00054916,14]
[343092653,1732345856878,-150.0,0.00054924,14]
[343092654,1732345856888,-150.0,0.00054937,14]
[343092655,1732345856897,-150.0,0.00054941,14]
[343092656,1732345856906,-150.0,0.00054942,14]
[343092657,1732345856916,-150.0,0.00054956,14]
[343092658,1732345856927,-150.0,0.00054997,14]
[343092659,1732345856936,-5441.06637284,0.00055,120]
[343092660,1732345856949,-31145.74237497,0.00055,120]
[343092661,1732345857247,-1159.95949776,0.00055,120]
[343092662,1732345857291,-80.97647562,0.00055,120]
[343092676,1732345941576,167.16,0.00043249,2]
[343092677,1732345950533,-157.27020667,0.00052502,120]
[343092678,1732345950559,-514.10701773,0.00052602,120]
[343092679,1732345950584,-500.0,0.00052602,120]
[343092680,1732345950611,-500.0,0.00052602,120]
[343092681,1732345950635,-500.0,0.00052602,120]
[343092682,1732345950660,-504.50957673,0.00052602,120]
[343092683,1732345950684,-500.0,0.00052602,120]
[343092684,1732345950709,-533.15002734,0.00052602,120]
[343092685,1732345950735,-500.0,0.00052602,120]
[343092686,1732345950760,-500.0,0.00052602,120]
[343092687,1732345950785,-505.72057653,0.00052602,120]
[343092688,1732345950811,-500.0,0.00052602,120]
[343092689,1732345950835,-500.0,0.00052602,120]
[343092690,1732345950961,-500.0,0.00052602,120]
[343092691,1732345950988,-500.0,0.00052602,120]
[343092692,1732345951015,-500.0,0.00052602,120]
[343092693,1732345951039,-547.1896044,0.00052602,120]
[343092694,1732345951065,-338.60063233,0.00052602,120]
[343092695,1732345951091,-500.0,0.00052602,120]
[343092696,1732345951119,-500.0,0.00052602,120]
[343092697,1732345951143,-331.36,0.00052602,120]
[343092698,1732345951169,-500.0,0.00052602,120]
[343092699,1732345951194,-500.0,0.00052602,120]
[343092700,1732345951219,-500.0,0.00052602,120]
[343092701,1732345951245,-500.0,0.00052602,120]
[343092702,1732345951270,-500.0,0.00052602,120]
[343092703,1732345951294,-506.22143404,0.00052602,120]
[343092704,1732345951319,-500.0,0.00052602,120]
[343092705,1732345951342,-500.0,0.00052602,120]
[343092706,1732345951366,-500.0,0.00052602,120]
[343092707,1732345951393,-513.82404275,0.00052602,120]
[343092708,1732345951417,-512.34392118,0.00052602,120]
[343092709,1732345951441,-500.0,0.00052602,120]
[343092710,1732345951465,-377.64,0.00052602,120]
[343092711,1732345951490,-500.0,0.00052602,120]
[343092712,1732345951516,-596.11,0.00052602,120]
[343092713,1732345951541,-500.0,0.00052602,120]
[343092714,1732345951566,-230.02,0.00052602,120]
[343092715,1732345951593,-500.0,0.00052602,120]
[343092716,1732345951619,-500.0,0.00052602,120]
[343092717,1732345951643,-500.0,0.00052602,120]
[343092718,1732345951667,-500.0,0.00052602,120]
[343092719,1732345951691,-500.0,0.00052602,120]
[343092720,1732345951715,-505.11684195,0.00052602,120]
[343092721,1732345951741,-500.0,0.00052602,120]
[343092722,1732345951765,-500.0,0.00052602,120]
[343092723,1732345951791,-514.15088651,0.00052602,120]
[343092724,1732345951815,-500.0,0.00052602,120]
[343092725,1732345951839,-500.0,0.00052602,120]
[343092726,1732345951866,-647.62,0.00052602,120]
[343092727,1732345951892,-500.0,0.00052602,120]
[343092728,1732345951916,-500.0,0.00052602,120]
[343092729,1732345951941,-500.0,0.00052602,120]
[343092730,1732345951966,-500.0,0.00052602,120]
[343092731,1732345951991,-500.0,0.00052602,120]
[343092732,1732345952015,-500.0,0.00052602,120]
[343092733,1732345952040,-169.11,0.00052602,120]
[343092734,1732345952066,-500.0,0.00052602,120]
[343092735,1732345952093,-500.0,0.00052602,120]
[343092736,1732345952120,-500.0,0.00052602,120]
[343092737,1732345952145,-500.0,0.00052602,120]
[343092738,1732345952171,-500.0,0.00052602,120]
[343092739,1732345952197,-518.67196108,0.00052602,120]
[343092740,1732345952225,-500.0,0.00052602,120]
[343092741,1732345952252,-500.0,0.00052602,120]
[343092742,1732345952389,-500.0,0.00052602,120]
[343092743,1732345952416,-334.1,0.00052602,120]
[343092744,1732345952442,-500.0,0.00052602,120]
[343092745,1732345952467,-500.0,0.00052602,120]
[343092746,1732345952494,-580.64,0.00052602,120]
[343092747,1732345952537,-500.0,0.00052602,120]
[343092748,1732345952580,-450.07,0.00052602,120]
[343092749,1732345952609,-500.0,0.00052602,120]
[343092750,1732345952636,-500.0,0.00052602,120]
[343092751,1732345952663,-562.65,0.00052602,120]
[343092752,1732345952690,-500.0,0.00052602,120]
[343092753,1732345952715,-565.84,0.00052602,120]
[343092754,1732345952741,-414.00073264,0.00052602,120]
[343092755,1732345952766,-168.0,0.00052602,120]
[343092756,1732345952790,-500.0,0.00052602,120]
[343092757,1732345952816,-188.13052937,0.00052602,120]
[343092758,1732345952842,-500.0,0.00052602,120]
[343092759,1732345952870,-500.0,0.00052602,120]
[343092760,1732345952896,-519.97553638,0.00052602,120]
[343092761,1732345952926,-507.69975795,0.00052602,120]
[343092762,1732345952956,-500.0,0.00052602,120]
[343092763,1732345952985,-500.0,0.00052602,120]
[343092764,1732345953012,-500.0,0.00052602,120]
[343092765,1732345953040,-500.0,0.00052602,120]
[343092766,1732345953067,-241.23860442,0.00052602,120]
[343092767,1732345953094,-500.0,0.00052602,120]
[343092768,1732345953121,-500.0,0.00052602,120]
[343092769,1732345953155,-500.0,0.00052602,120]
[343092770,1732345953185,-500.0,0.00052602,120]
[343092771,1732345953212,-406.40033284,0.00052602,120]
[343092772,1732345953242,-500.0,0.00052602,120]
[343092773,1732345953269,-500.0,0.00052602,120]
[343092774,1732345953294,-500.0,0.00052602,120]
[343092775,1732345953321,-377.84,0.00052602,120]
[343092776,1732345953349,-500.0,0.00052602,120]
[343092777,1732345953375,-500.0,0.00052602,120]
[343092778,1732345953401,-322.75,0.00052602,120]
[343092779,1732345953427,-500.0,0.00052602,120]
[343092780,1732345953454,-226.0645,0.00053082,120]
[343092781,1732345953479,-456.19,0.00053895,2]
[343092782,1732345953509,-250.0,0.00054116,120]
[343092783,1732345953539,-174.7,0.00054245,2]
[343092784,1732345953566,-250.0,0.00054351,120]
[343092785,1732345953596,-150.0,0.00054736,7]
[343092786,1732345953622,-1000.0,0.00054794,120]
[343092787,1732345953648,-587.06,0.00054794,120]
[343092788,1732345953678,-150.0,0.00054808,14]
[343092789,1732345953709,-150.0,0.00054877,14]
[343092790,1732345953739,-188.64370384,0.00054899,120]
[343092791,1732345953767,-170.06948319,0.000549,58]
[343092792,1732345953795,-392.98058763,0.000549,15]
[343092793,1732345953926,-176.68136146,0.00054924,14]
[343092794,1732345953957,-150.0,0.00054957,14]
[343092795,1732345953989,-150.0,0.00054988,14]
[343092796,1732345954022,-316.14,0.0005499,30]
[343092797,1732345954052,-500.0,0.00054995,120]
[343092798,1732345954083,-30000.0,0.00054996,31]
[343092799,1732345954112,-184.22244181,0.00054998,120]
[343092800,1732345954139,-962.58744864,0.00054999,120]
[343092801,1732345954167,-500.0,0.00054999,120]
[343092802,1732345954195,-2670.1545,0.00054999,5]
[343092803,1732345954224,-411082.43375059,0.00055,120]
[343092804,1732345954350,-500.0,0.00052602,120]
[343092805,1732345954380,-499500.0,0.00055,120]
[343092806,1732345954423,-500000.0,0.00055,120]
[343092807,1732345954463,-500000.0,0.00055,120]
[343092808,1732345954519,-500000.0,0.00055,120]
[343092809,1732345954572,-500.0,0.00052602,120]
[343092810,1732345954600,-499500.0,0.00055,120]
[343092811,1732345954638,-500000.0,0.00055,120]
[343092812,1732345954680,-500000.0,0.00055,120]
[343092813,1732345954735,-500000.0,0.00055,120]
[343092814,1732345955171,-176.26587868,0.00052602,120]
[343092815,1732345955196,-499823.73412132,0.00055,120]
[343092816,1732345957604,-500.0,0.00052602,120]
[343092817,1732345957629,-500.0,0.00052602,120]
[343092818,1732345957653,-500.0,0.00052602,120]
[343092819,1732345957679,-502.09477056,0.00052602,120]
[343092820,1732345957720,-497997.90522944,0.00055,120]
[343092821,1732345958957,-215657.23815144,0.00055,120]
[343092822,1732345958984,-1716.09872863,0.00055,30]
[343092823,1732345959011,-1716.09872863,0.00055,30]
[343092824,1732345959036,-1716.09872863,0.00055,30]
[343092825,1732345959064,-1716.09872863,0.00055,30]
[343092826,1732345959089,-7738.3797071,0.00055,2]
[343092827,1732345959115,-2331.83914,0.00055,73]
[343092828,1732345959140,-9580.9700358,0.00055,2]
[343092829,1732345959166,-500.0,0.00055136,120]
[343092830,1732345959190,-392.98058761,0.00055233,15]
[343092831,1732345959216,-500.0,0.00055273,120]
[343092832,1732345959244,-2820.76779517,0.00055308,15]
[343092833,1732345959268,-500.0,0.0005541,120]
[343092834,1732345959294,-302.54191076,0.00055547,120]
[343092835,1732345959319,-392.98058761,0.00055567,15]
[343092836,1732345959347,-165.49668888,0.00055731,28]
[343092837,1732345959371,-167.54,0.0005574,2]
[343092838,1732345959397,-392.98058761,0.000559,15]
[343092839,1732345959422,-374.01,0.00055924,2]
[343092840,1732345959449,-200.0,0.00056,120]
[343092841,1732345959473,-500.0,0.00056,120]
[343092842,1732345959522,150.0,0.00044,2]
[343092843,1732345959555,500.0,0.00052602,120]
[343092844,1732345959595,500.0,0.00052602,120]
[343092845,1732345960537,333.1303724,0.000549,2]
[343092846,1732345961149,500.0,0.00052602,120]
[343092847,1732345962669,150.0,0.00052602,120]
[343092848,1732345962694,185.1663029,0.00052602,120]
[343092850,1732345963961,150.0,0.00056,120]
[343092851,1732345965704,150.0,0.00052602,120]
[343092852,1732345965849,150.0,0.00052602,120]
[343092853,1732345965875,150.0,0.00052602,120]
[343092854,1732345965900,50.0,0.00052602,120]
[343092855,1732345965930,100.0,0.00052602,120]
[343092856,1732345965954,150.0,0.00052602,120]
[343092857,1732345965979,150.0,0.00052602,120]
[343092858,1732345966124,100.0,0.00052602,120]
[343092859,1732345966157,500.0,0.00052602,120]
[343092860,1732345966208,500.0,0.00052602,120]
[343092861,1732345966239,500.0,0.00052602,120]
[343092862,1732345966397,333.99,0.00052602,120]
[343092863,1732345966430,500.0,0.00052602,120]
[343092864,1732345966700,500.0,0.00052602,120]
[343092865,1732345966990,418.58155179,0.00054995,120]
[343092866,1732345967224,500.0,0.00056,120]
[343092867,1732345967978,500.0,0.00052602,120]
[343092868,1732345968238,500.0,0.00052602,120]
[343092869,1732345968843,500.0,0.00052602,120]
[343092870,1732345970026,500.0,0.00052602,30]
[343092871,1732345970727,500.0,0.00052602,120]
[343092872,1732345970771,500.0,0.00052602,120]
[343092873,1732345970984,500.0,0.00052602,120]
[343092874,1732345971029,614.64,0.00052602,120]
[343092875,1732345971302,500.0,0.00052602,120]
[343092876,1732345972887,500.0,0.00052602,120]
[343092877,1732345972929,508.99718085,0.00052602,120]
[343092878,1732345973082,500.0,0.00052602,120]
[343092880,1732345973407,500.0,0.00052602,120]
[343092881,1732345973939,500.0,0.00052602,120]
[343092882,1732345974205,500.0,0.00052602,120]
[343092883,1732345974334,500.0,0.00052602,120]
[343092884,1732345974476,475.92,0.00052602,120]
[343092885,1732345974790,500.0,0.00052602,120]
[343092886,1732345977728,500.0,0.00052602,120]
[343092887,1732345978093,500.0,0.00052602,120]
[343092888,1732345978356,500.0,0.00054995,120]
[343092889,1732345978621,165.82077107,0.00052602,120]
[343092890,1732345978722,4308.0,0.00054205,117]
[343092891,1732345979193,500.0,0.00052602,120]
[343092892,1732345979396,500.0,0.00052602,120]
[343092893,1732345979753,500.0,0.00054998,120]
[343092894,1732345980032,500.0,0.00054998,120]
[343092895,1732345980332,500.0,0.00054999,120]
[343092896,1732345980652,500.0,0.00054999,120]
[343092897,1732345980909,177.60923901,0.00054999,120]
[343092898,1732345982735,500.0,0.00052602,120]
[343092899,1732345982878,500.0,0.00052602,120]
[343092900,1732345983164,509.14754968,0.00052602,120]
[343092901,1732345983861,500.0,0.00052602,120]
[343092903,1732345984127,500.0,0.00052602,120]
[343092904,1732345984343,500.0,0.00052602,120]
[343092905,1732345984383,486.8574049,0.00052602,120]
[343092906,1732345984695,547.20585377,0.00052602,120]
[343092907,1732345986330,500.0,0.00052602,120]
[343092908,1732345986577,527.41566602,0.00052602,120]
[343092920,1732345986946,563.08289872,0.00055914,2]
[343092921,1732345987034,500.0,0.00052602,120]
[343092922,1732345987377,534.20708902,0.00052602,120]
[343092923,1732345989555,173.26500264,0.00052602,120]
[343092924,1732345990354,500.0,0.00052602,120]
[343092925,1732345990604,321.80609887,0.00052602,120]
[343092926,1732345991249,547.56527463,0.00052602,120]
[343092927,1732345992033,500.0,0.00052602,120]
[343092928,1732345993368,619.74824493,0.00052602,120]
[343092929,1732345995667,500.0,0.00052602,120]
[343092930,1732345995920,500.0,0.00052602,120]
[343092931,1732345997376,500.0,0.00052602,120]
[343092932,1732345998066,500.0,0.00052602,120]
[343092933,1732345998319,500.0,0.00052602,120]
[343092934,1732345998874,529.9,0.00052602,120]
[343092935,1732345999338,599.51,0.00052602,120]
[343092936,1732345999648,599.51,0.00052602,120]
[343092937,1732345999913,599.51,0.00052602,120]
[343092938,1732346000189,599.51,0.00052602,120]
[343092939,1732346000261,500.0,0.00052602,120]
[343092940,1732346000465,599.51,0.00052602,120]
[343092941,1732346000752,599.51,0.00054994,120]
[343092942,1732346001012,599.51,0.00054998,120]
[343092943,1732346001258,599.51,0.00054998,120]
[343092944,1732346001533,599.51,0.00054998,120]
[343092945,1732346001809,599.51,0.00054999,120]
[343092946,1732346002100,599.51,0.00054999,120]
[343092947,1732346002131,500.0,0.00052602,120]
[343092948,1732346002287,500.0,0.00052602,120]
[343092949,1732346002354,599.51,0.00054999,120]
[343092950,1732346002394,500.0,0.00052602,120]
[343092951,1732346002639,599.51,0.00054999,120]
[343092952,1732346003076,599.51,0.00054999,120]
[343092953,1732346003365,599.51,0.00054999,120]
[343092954,1732346003639,599.51,0.00054999,120]
[343092955,1732346003878,295.59490086,0.00052602,120]
[343092956,1732346003915,599.51,0.00054999,120]
[343092957,1732346004173,189.39,0.00055752,2]
[343092958,1732346004203,599.51,0.00054999,120]
[343092959,1732346004274,500.0,0.00052602,120]
[343092960,1732346004389,189.39,0.00055767,2]
[343092961,1732346004485,599.51,0.00054999,120]
[343092962,1732346004721,312.45043147,0.00052602,120]
[343092963,1732346004767,599.51,0.00054999,120]
[343092964,1732346004800,189.39,0.00055781,2]
[343092965,1732346004830,500.0,0.00052602,120]
[343092966,1732346005002,189.39,0.00055796,2]
[343092967,1732346005036,599.51,0.00054999,120]
[343092968,1732346005079,421.14252813,0.00052602,120]
[343092969,1732346005192,189.39,0.00055811,2]
[343092970,1732346005286,599.51,0.00054999,120]
[343092971,1732346005411,189.39,0.00055825,2]
[343092972,1732346005555,599.51,0.00054999,120]
[343092973,1732346005816,599.74897615,0.00054999,120]
[343092974,1732346005903,189.39,0.0005584,2]
[343092975,1732346006105,189.39,0.00055855,2]
[343092976,1732346006344,189.39,0.00055869,2]
[343092977,1732346006561,189.39,0.00055884,2]
[343092978,1732346006757,189.39,0.00055899,2]
[343092979,1732346006999,824.51848,0.00056,78]
[343092980,1732346007154,189.39,0.00055914,2]
[343092981,1732346007360,189.39,0.00055928,2]
[343092982,1732346007561,189.39,0.00055943,2]
[343092983,1732346007766,189.39,0.00055958,2]
[343092984,1732346007967,189.39,0.00055972,2]
[343092985,1732346008183,189.39,0.00055987,2]
[343092986,1732346008214,150.0,0.00052,120]
[343092987,1732346008752,500.0,0.00052602,120]
[343092988,1732346010964,500.0,0.00052602,120]
[343092989,1732346012370,500.0,0.00024932,2]
[343092990,1732346012828,500.0,0.00052602,120]
[343092991,1732346012981,500.0,0.00052602,120]
[343092992,1732346013058,249.29498913,0.00052602,120]
[343092993,1732346013127,500.0,0.00024932,2]
[343092994,1732346013243,383.32728307,0.00052602,120]
[343092995,1732346013519,553.58,0.00052602,120]
[343092996,1732346013677,500.0,0.00024932,2]
[343092997,1732346014378,2100.0,0.00056,120]
[343092998,1732346015190,198.7397,0.000549,2]
[343092999,1732346015299,505.36997766,0.00052602,120]
[343093000,1732346015704,500.0,0.00052602,120]
[343093001,1732346015982,500.0,0.00052602,120]
[343093002,1732346019017,320.74474258,0.00054794,120]
[343093003,1732346022986,536.3126983,0.00054794,120]
[343093004,1732346023640,500.0,0.00054794,120]
[343093005,1732346023948,500.0,0.00054794,120]
[343093006,1732346024555,500.0,0.00054794,120]
[343093007,1732346024824,515.16484872,0.00054794,120]
[343093008,1732346026107,500.0,0.00054794,120]
[343093009,1732346026211,500.0,0.00054794,60]
[343093010,1732346030536,500.0,0.00054794,120]
[343093011,1732346030794,500.0,0.00054794,120]
[343093012,1732346031230,500.0,0.00054794,120]
[343093013,1732346031305,500.0,0.00054794,120]
[343093014,1732346032741,500.0,0.00054794,120]
[343093015,1732346033012,500.0,0.00054794,120]
[343093035,1732346036308,690.35,0.00055708,2]
[343093036,1732346037391,517.22772746,0.00054794,120]
[343093037,1732346037718,500.0,0.00054794,120]
[343093038,1732346038137,1163.39,0.00054794,120]
[343093039,1732346038435,1163.39,0.00054794,120]
[343093040,1732346038516,500.0,0.00054794,120]
[343093041,1732346038690,1163.39,0.00054995,120]
[343093042,1732346038769,641.14,0.00054794,120]
[343093043,1732346038868,500.0,0.00054794,120]
[343093044,1732346038959,1163.39,0.00054998,120]
[343093045,1732346039250,1163.39,0.00054998,120]
[343093046,1732346039512,1163.39,0.00054999,120]
[343093047,1732346039770,1163.39,0.00054999,120]
[343093048,1732346039829,1000.0,0.000549,2]
[343093049,1732346040023,500.0,0.00054794,120]
[343093050,1732346040060,1163.39,0.00054999,120]
[343093051,1732346040294,1163.39,0.00054999,120]
[343093052,1732346040626,1163.39,0.00054999,120]
[343093053,1732346040845,1163.39,0.00054999,120]
[343093054,1732346040877,500.0,0.00054794,120]
[343093055,1732346041123,500.0,0.00054794,120]